bitfinex-derivatives/quotes_ETHF0:USTF0_20250212
["timestamp","ask_amount","ask_price","bid_price","bid_amount"]
[1739373493992,3.2078,2590.8,2590.0,0.00579095]
[1739373493993,3.2078,2590.2,2590.0,0.00579095]
[1739373494192,3.2078,2590.2,2589.3,3.2078]
[1739373494403,0.77224,2590.0,2589.7,4.91757708]
[1739373494594,0.77225,2590.0,2589.7,4.91757708]
[1739373494803,3.2078,2590.2,2589.6,3.2078]
[1739373495005,3.2078,2590.2,2588.9,0.7018]
[1739373495006,3.2078,2590.2,2589.0,8.25280851]
[1739373495205,3.2078,2590.2,2589.7,5.07101552]
[1739373495408,0.7723,2589.8,2589.5,5.07101552]
[1739373495599,0.00579095,2589.9,2589.4,0.00386062]
[1739373495915,0.00579095,2589.9,2589.6,5.84335552]
[1739373496201,0.00579095,2589.9,2589.4,5.04886913]
[1739373496398,0.00579095,2589.9,2589.7,5.00789297]
[1739373496798,3.98587095,2589.9,2589.4,0.00386062]
[1739373497009,0.00579095,2589.9,2589.8,4.97668489]
[1739373497199,0.00579095,2589.9,2589.6,8.18448489]
[1739373497402,0.00579095,2589.9,2589.8,0.7723]
[1739373497601,0.00579095,2589.9,2589.8,5.74898489]
[1739373497908,0.00579095,2589.9,2589.7,0.6795]
[1739373498202,0.00579095,2589.9,2589.8,5.01350301]
[1739373498516,0.00579095,2589.9,2589.8,5.78580301]
[1739373498702,0.00579095,2589.9,2589.8,5.01350301]
[1739373499007,0.00579095,2589.9,2589.8,5.78580301]
[1739373499211,3.2078,2591.1,2589.9,1.93067]
[1739373499404,3.97973,2591.1,2590.6,0.77206]
[1739373499601,0.77183,2591.4,2590.9,0.77195]
[1739373499907,5.6878,2591.8,2590.8,3.2078]
[1739373499908,0.77186,2591.3,2590.8,3.2078]
[1739373500107,5.6878,2591.8,2591.0,5.07978627]
[1739373500405,0.00579095,2591.3,2591.0,5.07978627]
[1739373500613,0.77191,2591.1,2591.0,5.07978627]
[1739373500799,0.00579095,2591.3,2590.8,3.21359095]
[1739373500800,0.77197,2590.9,2590.8,0.00579095]
[1739373501108,3.2078,2591.2,2590.8,0.00579095]
[1739373502205,3.2078,2591.2,2590.9,5.12297997]
[1739373502411,0.00579095,2591.3,2591.2,0.77188]
[1739373502709,3.2078,2592.5,2591.6,0.77175]
[1739373502907,1.92881,2592.5,2591.5,3.2078]
[1739373503109,0.77168,2591.9,2591.4,0.77181]
[1739373503404,0.77173,2591.7,2591.6,5.00527443]
[1739373503605,3.2078,2591.9,2591.5,5.00527443]
[1739373503811,5.13667,2592.4,2591.3,5.00527443]
[1739373504001,0.77176,2591.6,2591.2,3.97966]
[1739373504310,5.13698,2591.9,2591.0,1.4159]
[1739373504606,1.92954,2591.5,2590.8,3.21359095]
[1739373504803,3.2078,2591.4,2590.8,3.21359095]
[1739373505110,0.77194,2591.0,2590.8,3.21359095]
[1739373505412,0.77197,2590.9,2590.8,0.00579095]
[1739373505702,0.6929,2591.4,2590.8,0.77777095]
[1739373505910,0.7719,2591.2,2590.8,0.00579095]
[1739373506111,3.1569,2591.4,2590.8,0.00579095]
[1739373506403,3.2078,2591.5,2590.9,5.03077746]
[1739373506605,3.2078,2591.8,2591.1,3.2078]
[1739373506810,0.77178,2591.6,2591.2,0.77187]
[1739373507004,3.2078,2591.8,2591.2,5.03077746]
[1739373507211,0.00579095,2592.0,2591.2,5.03077746]
[1739373507414,0.00579095,2592.0,2591.1,8.84105872]
[1739373507603,0.77168,2591.9,2591.1,3.869]
[1739373507906,0.77172,2591.8,2591.4,0.77182]
[1739373508206,0.00579095,2592.0,2591.4,0.7718]
[1739373508509,0.77176,2591.6,2591.2,5.81686851]
[1739373508705,0.77187,2591.3,2591.1,3.869]
[1739373508910,0.00579095,2592.0,2590.8,5.05079946]
[1739373508911,3.2078,2591.5,2590.8,0.00579095]
[1739373509104,0.77194,2591.0,2590.8,0.00579095]
[1739373509303,0.77194,2591.1,2590.8,0.00579095]
[1739373509506,0.77197,2590.9,2590.8,0.00579095]
[1739373510207,3.97977,2590.9,2590.8,0.00579095]
[1739373511108,0.77196,2591.0,2590.8,0.00579095]
[1739373511307,0.77197,2590.9,2590.8,0.00579095]
[1739373511610,3.97977,2590.9,2590.8,0.00579095]
[1739373512111,0.77197,2590.9,2590.8,0.00579095]
[1739373512611,3.2078,2591.3,2590.8,0.00579095]
[1739373512800,0.77193,2591.1,2590.8,0.00579095]
[1739373513313,0.77183,2591.4,2590.8,0.00579095]
[1739373513520,0.77178,2591.6,2590.9,8.2698038]
[1739373513715,1.3582,2591.9,2590.9,8.2698038]
[1739373513909,0.00579095,2592.0,2591.2,8.25280851]
[1739373514213,0.77745095,2592.0,2591.3,8.11816836]
[1739373514412,0.77171,2591.8,2591.5,3.2078]
[1739373514712,0.77177,2591.6,2591.3,3.164]
[1739373514900,1.92927,2591.8,2590.9,2.461]
[1739373515106,0.7719,2591.2,2590.9,2.461]
[1739373515307,0.77192,2591.1,2590.9,5.0606688]
[1739373515506,5.13725,2591.6,2590.8,0.00579095]
[1739373515712,3.2078,2591.3,2590.8,0.00579095]
[1739373516010,0.77197,2590.9,2590.8,0.00579095]
[1739373516606,3.97977,2590.9,2590.8,0.00579095]
[1739373517005,9.97977,2590.9,2590.8,0.00579095]
[1739373517209,1.93001,2590.8,2589.6,5.74020851]
[1739373517409,3.2078,2590.5,2589.6,5.74020851]
[1739373517611,3.2078,2590.5,2589.7,4.99749231]
[1739373517914,0.77222,2590.1,2589.8,0.77228]
[1739373518109,0.77224,2590.0,2589.7,5.76979231]
[1739373518306,3.21359095,2590.2,2589.7,0.00579095]
[1739373518510,3.2078,2589.9,2589.7,0.00579095]
[1739373518713,0.7723,2589.8,2589.7,0.00579095]
[1739373518910,0.7723,2589.8,2588.8,0.29591214]
[1739373519208,3.2078,2589.5,2588.9,4.94602059]
[1739373519615,3.2078,2589.5,2588.9,3.2078]
[1739373519808,0.77247,2589.3,2588.9,8.15382059]
[1739373520002,0.6777,2589.7,2588.9,4.94602059]
[1739373520207,0.7724,2589.5,2589.0,0.77252]
[1739373520413,3.2078,2589.5,2589.0,5.09909211]
[1739373521111,0.77249,2589.2,2588.8,0.00386062]
[1739373521410,3.2078,2589.5,2588.8,0.00386062]
[1739373521811,3.2078,2589.2,2588.8,0.00386062]
[1739373522507,0.77255,2589.0,2588.8,0.00386062]
[1739373522713,3.9803,2589.2,2588.8,0.00386062]
[1739373522912,3.2078,2589.2,2588.8,0.77643062]
[1739373523218,3.2078,2589.2,2588.9,5.03689602]
[1739373523517,0.6777,2589.7,2588.9,5.80944602]
[1739373523518,0.77243,2589.4,2588.9,5.80944602]
[1739373523911,3.8855,2589.7,2588.9,5.03689602]
[1739373524107,0.77247,2589.3,2588.9,5.03689602]
[1739373524315,0.77243,2589.4,2588.9,5.80943602]
[1739373524511,3.2078,2589.7,2589.1,3.2078]
[1739373524712,0.77239,2589.5,2589.1,3.2078]
[1739373524914,0.77233,2589.8,2589.3,0.77245]
[1739373525117,0.77233,2589.8,2589.4,3.9802]
[1739373525419,0.77233,2589.8,2589.4,5.10262569]
[1739373525713,3.2078,2590.0,2588.9,3.1105]
[1739373525913,0.77235,2589.7,2589.2,0.77246]
[1739373526119,3.2078,2589.9,2589.0,3.2078]
[1739373526320,3.2078,2589.9,2589.1,0.7725]
[1739373526711,0.77237,2589.6,2589.1,0.77248]
[1739373526909,0.7724,2589.5,2589.0,3.98031]
[1739373527108,1.93059,2590.1,2588.8,5.3472049]
[1739373527109,5.13862,2589.7,2588.8,2.43986062]
[1739373527316,3.2078,2589.3,2588.8,2.43986062]
[1739373527516,0.77256,2588.9,2588.8,0.00386062]
[1739373528016,3.2078,2589.3,2588.8,0.00386062]
[1739373528217,0.77231,2589.8,2589.4,0.77239]
[1739373528407,0.77226,2590.0,2589.4,3.2078]
[1739373528612,3.2078,2590.1,2589.4,3.2078]
[1739373528613,3.2078,2590.1,2589.5,5.12441537]
[1739373528819,3.98002,2590.1,2589.7,0.77231]
[1739373529020,0.00579095,2590.2,2589.8,0.7723]
[1739373529223,0.00579095,2590.2,2589.8,5.0288033]
[1739373529412,0.77223,2590.1,2589.7,0.77231]
[1739373529618,0.00579095,2590.2,2589.9,3.2078]
[1739373529920,0.77206,2590.6,2590.0,7.49200851]
[1739373530109,3.9069,2591.1,2590.2,0.77216]
[1739373530313,0.77209,2590.6,2590.1,8.95879076]
[1739373530518,0.77222,2590.1,2589.7,0.77231]
[1739373530818,0.7722,2590.2,2589.6,7.49000851]
[1739373531020,0.77217,2590.3,2589.8,0.77227]
[1739373531211,0.77222,2590.1,2589.7,0.77231]
[1739373531413,0.77226,2590.0,2589.6,5.82313946]
[1739373531719,0.77225,2590.0,2589.6,0.77813095]
[1739373531918,0.00579095,2590.2,2589.7,5.08770187]
[1739373532220,0.00579095,2590.2,2590.1,3.98001]
[1739373532413,0.00579095,2590.2,2590.1,0.77221]
[1739373532612,0.00579095,2590.2,2590.0,3.2078]
[1739373532813,0.77800095,2590.2,2589.7,5.86002187]
[1739373533013,3.2078,2590.0,2589.6,0.00579095]
[1739373533213,0.77227,2589.9,2589.6,0.00579095]
[1739373533419,3.2078,2590.0,2589.6,0.00579095]
[1739373533620,3.98005,2590.0,2589.6,0.77813095]
[1739373533922,3.2078,2590.0,2589.6,0.00579095]
[1739373534417,0.00579095,2590.2,2589.8,0.05436169]
[1739373534823,0.00579095,2590.2,2589.9,5.75854893]
[1739373535018,0.00579095,2590.2,2589.9,5.6468]
[1739373535323,3.2078,2591.0,2590.1,1.93053]
[1739373535524,3.2078,2591.0,2590.6,0.77206]
[1739373535719,3.97975,2591.0,2590.6,0.77206]
[1739373535914,3.2078,2591.0,2590.5,3.2078]
[1739373536116,3.2078,2591.0,2590.7,0.77201]
[1739373536318,0.00579095,2591.1,2590.5,5.6398]
[1739373536629,0.00579095,2591.1,2591.0,0.77194]
[1739373536918,0.00579095,2591.1,2591.0,5.82668753]
[1739373537322,1.45158,2591.9,2591.0,5.05474753]
[1739373537515,0.77159,2592.2,2591.7,0.77172]
[1739373537717,0.6799,2592.7,2592.0,3.2078]
[1739373538020,0.00678346,2593.1,2592.6,3.2078]
[1739373538225,0.00678346,2593.1,2592.9,3.2078]
[1739373538725,0.01257441,2593.1,2593.0,0.05436169]
[1739373539018,2.433,2594.0,2593.0,0.05436169]
[1739373539019,3.2078,2594.5,2593.0,11.06481097]
[1739373539222,4.6077,2594.8,2593.8,5.04500851]
[1739373539416,4.67214,2594.8,2593.9,2.44]
[1739373539617,3.9013,2594.8,2594.3,0.05436169]
[1739373539818,3.2078,2595.1,2594.3,0.05436169]
[1739373540025,0.6954,2595.5,2594.6,3.2078]
[1739373540230,3.2078,2595.8,2595.2,3.2078]
[1739373540413,5.04500851,2596.8,2595.2,3.2078]
[1739373540414,3.2078,2596.1,2595.3,0.77064]
[1739373540612,0.77039,2596.3,2595.7,0.05436169]
[1739373540918,0.00577923,2595.8,2595.7,0.05436169]
[1739373541115,0.77029,2596.6,2595.7,0.06014092]
[1739373541321,3.2078,2596.7,2596.1,3.2078]
[1739373541521,3.2078,2596.4,2595.9,2.44]
[1739373541725,3.2078,2596.8,2595.9,2.44]
[1739373541919,3.2078,2596.8,2595.8,2.441]
[1739373542125,3.2078,2596.5,2595.8,2.441]
[1739373542314,0.77031,2596.5,2595.8,5.048038]
[1739373542519,0.06694243,2596.4,2595.8,10.86353651]
[1739373542817,0.00576362,2596.6,2595.8,10.09304651]
[1739373543016,0.00576362,2596.6,2595.7,5.65557923]
[1739373543017,0.00576362,2596.6,2595.7,3.21357923]
[1739373543218,0.00576362,2596.6,2595.7,0.00577923]
[1739373543418,0.00576362,2596.6,2596.1,3.2078]
[1739373543620,0.00576362,2596.6,2595.8,9.94288254]
[1739373543819,0.00576362,2596.6,2596.2,4.89787403]
[1739373544216,0.00576362,2596.6,2596.0,4.89787403]
[1739373544421,0.77604362,2596.6,2595.8,5.04500851]
[1739373544616,3.21356362,2596.6,2596.1,5.00826663]
[1739373544818,3.98384362,2596.6,2595.7,3.21357923]
[1739373545030,3.21356362,2596.6,2595.8,2.432]
[1739373545232,0.77034,2596.4,2595.8,7.43989636]
[1739373545524,3.2078,2596.0,2595.7,0.00577923]
[1739373545736,0.77051,2595.8,2595.7,0.00577923]
[1739373546928,6.77051,2595.8,2595.7,0.00577923]
[1739373547330,6.0,2595.8,2594.6,3.19886]
[1739373547628,3.2078,2595.4,2594.9,5.04806063]
[1739373547932,3.2078,2595.8,2595.3,3.2078]
[1739373548432,0.77056,2595.7,2595.4,5.02714638]
[1739373548632,0.77056,2595.7,2595.3,0.00577923]
[1739373548835,3.2078,2595.8,2595.3,0.00577923]
[1739373549026,0.77063,2595.4,2595.3,0.00577923]
[1739373549228,3.2078,2595.8,2595.3,0.00577923]
[1739373549431,0.77059,2595.6,2595.3,0.00577923]
[1739373549736,3.2078,2595.8,2595.3,0.00577923]
[1739373549929,3.97832,2595.8,2595.3,0.77641923]
[1739373550233,3.2078,2595.8,2595.4,4.92652442]
[1739373550428,3.2078,2596.2,2595.4,0.77061]
[1739373550624,3.2078,2596.2,2595.4,5.85081675]
[1739373551039,3.2078,2596.2,2595.4,5.08020675]
[1739373551342,0.77062,2595.5,2595.3,0.00577923]
[1739373551634,3.2078,2595.9,2595.3,0.00577923]
[1739373551829,0.77058,2595.6,2595.3,0.00577923]
[1739373552030,3.2078,2595.9,2595.3,0.00577923]
[1739373552229,2.417,2596.0,2595.3,0.00577923]
[1739373552230,0.77063,2595.4,2595.3,0.00577923]
[1739373553134,0.77063,2595.4,2595.3,9.23e-06]
[1739373553331,9.18163,2595.4,2595.3,9.23e-06]
[1739373553531,0.77095,2594.4,2594.1,3.97879]
[1739373553835,3.2078,2594.8,2594.2,5.04117652]
[1739373554028,0.77094,2594.4,2594.2,5.04117652]
[1739373554224,0.77094,2594.4,2593.8,7.45600851]
[1739373554225,0.77103,2594.1,2593.8,3.1821]
[1739373554432,0.77099,2594.2,2593.9,0.77106]
[1739373554630,0.77099,2594.2,2593.9,5.01094334]
[1739373554631,0.00577923,2594.2,2593.9,5.01094334]
[1739373554828,0.00577923,2594.2,2594.1,0.77102]
[1739373555133,0.77104,2594.1,2593.7,3.21357923]
[1739373555332,0.00577923,2594.2,2593.7,3.21357923]
[1739373555636,0.77103,2594.1,2593.9,4.92973079]
[1739373555831,0.77102,2594.1,2593.9,4.92973079]
[1739373556036,0.00577923,2594.2,2593.7,3.21357923]
[1739373556236,0.00577923,2594.2,2594.0,5.00828767]
[1739373556437,0.77104,2594.1,2593.9,5.00828767]
[1739373556644,0.00577923,2594.2,2593.7,3.21357923]
[1739373556941,0.77106,2594.0,2593.8,5.00828767]
[1739373557234,3.97882,2594.1,2593.8,5.00828767]
[1739373557431,0.00577923,2594.2,2594.0,0.77103]
[1739373557731,0.00577923,2594.2,2594.1,4.936363]
[1739373558332,0.00577923,2594.2,2594.0,5.88627754]
[1739373558640,0.00577923,2594.2,2594.1,5.11524754]
[1739373558829,0.77676923,2594.2,2594.1,5.11524754]
[1739373559035,0.00577923,2594.2,2593.7,0.00577923]
[1739373559334,0.7711,2593.9,2593.7,0.00577923]
[1739373559726,0.77104,2594.1,2593.7,0.77690923]
[1739373560036,0.77676923,2594.2,2593.8,5.81011689]
[1739373560230,0.00577923,2594.2,2593.8,5.03903689]
[1739373560433,0.00577923,2594.2,2593.9,0.77106]
[1739373560628,0.00577923,2594.2,2593.8,5.81012689]
[1739373560832,0.00577923,2594.2,2594.0,8.24003219]
[1739373561135,3.2078,2595.5,2594.2,1.92747]
[1739373561336,0.77074,2595.1,2594.7,3.2078]
[1739373561630,3.2078,2595.5,2594.8,5.05938835]
[1739373561830,0.77074,2595.1,2594.8,5.05938835]
[1739373562026,0.77073,2595.1,2594.8,5.83018835]
[1739373562230,0.77646923,2595.2,2594.9,0.77077]
[1739373562426,0.00577923,2595.2,2595.1,0.77072]
[1739373562625,3.2078,2595.9,2595.0,8.11916785]
[1739373562826,0.77053,2595.8,2595.4,0.77061]
[1739373563033,3.2078,2596.2,2595.4,3.2078]
[1739373563238,3.2078,2596.2,2595.5,5.11983002]
[1739373563631,3.2078,2596.2,2595.4,8.32763002]
[1739373563830,0.00576362,2596.1,2595.4,3.2078]
[1739373564033,0.77620362,2596.1,2595.6,0.77055]
[1739373564233,0.00576362,2596.1,2595.5,5.11983002]
[1739373564533,0.7705,2595.9,2595.7,4.9771705]
[1739373564735,0.77047,2596.0,2595.5,5.7477505]
[1739373564929,0.77047,2596.0,2595.8,4.9771705]
[1739373565336,0.00576362,2596.1,2595.6,5.01972286]
[1739373565532,0.00576362,2596.1,2595.9,5.01972286]
[1739373565732,3.2078,2596.9,2596.0,2.362]
[1739373565933,3.2078,2596.9,2596.1,0.77041]
[1739373566140,3.2078,2596.9,2596.1,5.01972286]
[1739373566330,0.77034,2596.4,2596.0,2.362]
[1739373566530,3.2078,2596.5,2596.0,2.362]
[1739373566746,4.0226,2597.1,2596.1,5.07334357]
[1739373567137,0.77025,2596.7,2596.2,0.77039]
[1739373567440,4.0226,2597.1,2596.1,5.07334357]
[1739373567941,0.77033,2596.4,2596.3,5.09967862]
[1739373568335,3.2078,2596.5,2596.0,5.56657923]
[1739373568336,0.77042,2596.1,2596.0,0.00577923]
[1739373570240,1.92617,2596.0,2595.2,0.77067]
[1739373570442,3.2078,2595.6,2594.8,3.2078]
[1739373570835,3.2078,2595.2,2595.1,4.96852094]
[1739373571038,0.77074,2595.1,2594.9,0.77077]
[1739373571236,3.2078,2595.2,2594.8,5.73931094]
[1739373571446,3.2078,2595.2,2594.7,0.00577923]
[1739373571643,3.2078,2595.1,2594.7,0.00577923]
[1739373571837,0.77079,2594.9,2594.7,0.77660923]
[1739373572044,3.2078,2595.1,2594.7,0.00577923]
[1739373572243,3.97861,2594.8,2594.7,0.00577923]
[1739373572843,3.97861,2594.8,2593.7,0.77111]
[1739373572844,0.77103,2594.1,2593.7,0.77111]
[1739373573040,3.2078,2594.5,2593.7,3.2078]
[1739373573339,3.2078,2594.5,2594.4,0.77093]
[1739373573549,3.2078,2594.5,2594.0,3.2078]
[1739373573550,3.9787,2594.5,2594.0,3.2078]
[1739373573739,3.2078,2594.5,2594.0,3.2078]
[1739373573942,3.2078,2594.5,2594.1,4.97789393]
[1739373574143,3.2078,2595.1,2594.0,0.00577923]
[1739373574339,0.77083,2594.8,2594.4,0.77092]
[1739373574644,3.2078,2595.1,2594.1,9.98169061]
[1739373574844,3.2078,2594.5,2594.0,0.00577923]
[1739373575050,3.2078,2594.8,2594.2,4.9366821]
[1739373575437,3.2078,2594.8,2594.3,0.77093]
[1739373575438,3.97862,2594.8,2594.3,0.77093]
[1739373575635,1.93243923,2595.3,2594.5,0.77089]
[1739373575636,3.2078,2595.2,2594.5,0.77089]
[1739373575841,3.2078,2595.2,2594.4,3.97871]
[1739373576148,0.77077,2595.0,2594.6,4.93185685]
[1739373576446,0.77079,2594.9,2594.6,4.93185685]
[1739373576641,3.2078,2595.2,2594.5,5.04399668]
[1739373576842,3.2078,2595.2,2594.7,5.04399668]
[1739373577038,0.00577923,2595.3,2594.5,5.04399668]
[1739373577039,0.00577923,2595.3,2594.5,8.25280851]
[1739373577244,0.00577923,2595.3,2594.9,5.04500851]
[1739373577443,3.97832,2595.8,2595.3,0.77064]
[1739373577748,0.77042,2596.2,2595.7,0.77054]
[1739373577947,0.77045,2596.0,2595.6,0.77055]
[1739373578142,3.2078,2596.7,2595.8,4.94727737]
[1739373578342,0.7704,2596.2,2595.7,0.77051]
[1739373578747,3.2078,2596.4,2596.0,0.00577923]
[1739373578748,0.77042,2596.1,2596.0,0.00577923]
[1739373579241,0.77042,2596.1,2596.0,4.99394401]
[1739373579448,3.2078,2596.4,2596.0,0.00577923]
[1739373579641,0.77038,2596.3,2596.0,0.00577923]
[1739373579846,0.77036,2596.3,2596.1,5.10174959]
[1739373580045,0.00577923,2596.5,2596.1,5.10174959]
[1739373580242,0.00577923,2596.5,2596.3,0.77036]
[1739373580446,0.00577923,2596.5,2596.0,0.00577923]
[1739373580750,0.00577923,2596.5,2596.3,0.77036]
[1739373581055,0.00577923,2596.5,2596.4,0.77033]
[1739373581245,0.00577923,2596.5,2596.0,0.00577923]
[1739373581440,0.00577923,2596.5,2596.4,4.92652353]
[1739373581641,4.0349,2597.1,2596.0,0.00577923]
[1739373581642,3.2078,2597.1,2596.2,3.2078]
[1739373581845,1.9247,2598.0,2596.9,0.77018]
[1739373581846,0.77005,2597.4,2596.9,0.77018]
[1739373582049,3.2078,2597.5,2596.9,3.2078]
[1739373582347,3.2078,2597.5,2597.0,4.92652353]
[1739373582348,3.97783,2597.5,2597.0,4.92652353]
[1739373582845,0.7699,2597.9,2597.2,3.2078]
[1739373583046,0.7699,2597.9,2597.3,0.77005]
[1739373583245,0.76993,2597.8,2597.3,8.20720139]
[1739373583440,3.2078,2598.0,2597.3,7.44293062]
[1739373583640,0.76992,2597.8,2597.3,8.21298062]
[1739373583852,3.2078,2598.0,2597.3,7.44293062]
[1739373584349,3.97767,2598.0,2597.5,0.76999]
[1739373584748,3.2078,2598.0,2597.3,2.34677923]
[1739373584944,3.2078,2598.0,2597.6,5.09320025]
[1739373585146,3.9775,2598.6,2598.0,0.76985]
[1739373585347,0.76972,2598.5,2597.9,3.97768]
[1739373585641,0.76974,2598.4,2598.1,5.01116002]
[1739373585844,3.2078,2598.6,2598.1,5.01116002]
[1739373586047,3.2078,2598.6,2598.1,5.78097002]
[1739373586241,3.2078,2598.6,2598.0,5.01116002]
[1739373586449,0.76976,2598.4,2598.0,5.01116002]
[1739373586653,0.76976,2598.4,2597.9,8.10603002]
[1739373586654,0.76976,2598.4,2597.9,0.76987]
[1739373586956,3.2078,2598.6,2598.1,4.98098011]
[1739373587148,0.76978,2598.3,2598.1,4.98098011]
[1739373587351,3.2078,2598.5,2597.7,5.07053822]
[1739373587551,3.2078,2598.2,2597.4,7.36600851]
[1739373587858,0.76975,2598.4,2597.8,5.07053822]
[1739373588047,3.97753,2598.5,2598.1,0.76981]
[1739373588248,3.2078,2598.5,2597.8,5.07053822]
[1739373588556,3.2078,2598.5,2598.2,5.80142547]
[1739373588948,3.2078,2598.5,2598.2,0.7698]
[1739373589149,5.06583,2599.2,2598.3,5.03162547]
[1739373589150,3.2078,2598.9,2598.3,5.03162547]
[1739373589450,0.76958,2599.0,2598.3,5.03162547]
[1739373589648,0.76958,2599.0,2598.6,0.76966]
[1739373589849,0.76959,2599.0,2598.6,0.76966]
[1739373590053,0.76961,2598.9,2598.7,4.93187934]
[1739373590450,3.2078,2599.1,2598.7,4.93187934]
[1739373590654,3.2078,2599.1,2598.5,0.00577923]
[1739373590956,0.76961,2598.9,2598.5,0.00577923]
[1739373591253,4.0268,2599.2,2598.8,0.7696]
[1739373591454,0.76955,2599.1,2598.8,0.7696]
[1739373591654,3.2078,2599.2,2599.0,0.76954]
[1739373591950,3.2078,2599.2,2598.9,5.01916645]
[1739373592150,0.76956,2599.0,2598.9,5.01916645]
[1739373592352,2.308,2599.0,2598.5,0.00577923]
[1739373592552,3.97748,2598.6,2598.5,0.00577923]
[1739373592859,0.76966,2598.7,2598.5,0.00577923]
[1739373593158,0.76968,2598.6,2598.5,0.00577923]
[1739373594049,6.76968,2598.6,2598.5,0.00577923]
[1739373594955,6.76968,2598.6,2597.4,3.2078]
[1739373594956,6.0,2598.6,2597.6,0.76997]
[1739373595252,0.76994,2597.8,2597.4,3.2078]
[1739373595461,0.76994,2597.8,2597.6,0.76997]
[1739373595656,3.2078,2598.0,2597.5,5.03759723]
[1739373595959,0.76996,2597.7,2597.5,0.77001]
[1739373596156,0.76996,2597.7,2597.6,5.03759723]
[1739373596452,0.76997,2597.7,2597.5,0.77578923]
[1739373596658,0.76998,2597.6,2597.5,0.00577923]
[1739373596853,3.21357923,2598.0,2597.5,0.77576923]
[1739373597056,0.76996,2597.7,2597.5,0.77576923]
[1739373597357,3.21357923,2598.0,2597.6,4.96563612]
[1739373597552,0.76992,2597.8,2597.6,5.73559612]
[1739373597856,0.00577923,2598.0,2597.6,8.17343612]
[1739373598052,0.00577923,2598.0,2597.9,0.76989]
[1739373598946,0.77564923,2598.0,2597.9,4.90634874]
[1739373599349,0.76998,2597.6,2597.5,0.00577923]
[1739373600059,3.21357923,2598.0,2597.5,0.77576923]
[1739373600254,0.76998,2597.6,2597.5,0.00577923]
[1739373600862,3.97778,2597.6,2597.5,0.00577923]
[1739373601164,0.76998,2597.6,2597.5,0.00577923]
[1739373601364,3.97778,2597.6,2597.5,0.00577923]
[1739373602058,9.97778,2597.6,2597.5,0.00577923]
[1739373602363,12.25478,2597.6,2597.5,0.00577923]
[1739373602664,12.25478,2597.6,2596.5,0.77029]
[1739373602665,0.77026,2596.7,2596.5,0.77029]
[1739373602855,0.77029,2596.6,2596.4,0.77032]
[1739373603058,3.2078,2597.2,2596.3,3.1185]
[1739373603261,3.2078,2597.2,2596.6,5.01236465]
[1739373603567,4.0299,2597.5,2597.1,0.7701]
[1739373603753,0.77007,2597.3,2596.7,1.92561]
[1739373603949,0.77006,2597.4,2597.2,0.77008]
[1739373604161,0.77007,2597.3,2597.2,4.89877091]
[1739373604860,3.2078,2597.8,2597.2,4.89877091]
[1739373605166,0.00577923,2598.0,2597.1,4.20627]
[1739373605360,1.92473,2597.9,2597.1,7.2469197]
[1739373605561,3.2078,2597.7,2597.1,4.9659197]
[1739373605863,0.7701,2597.2,2597.0,0.77013]
[1739373606065,3.2078,2597.4,2596.8,2.281]
[1739373606261,1.92503,2597.5,2596.8,2.281]
[1739373606565,0.77017,2597.0,2596.8,3.0512]
[1739373606863,3.2078,2597.3,2596.6,0.00577923]
[1739373607158,3.2078,2597.0,2596.6,0.00577923]
[1739373607464,0.77021,2596.8,2596.7,5.86361179]
[1739373607759,0.77024,2596.7,2596.6,0.00577923]
[1739373607958,3.97804,2596.7,2596.6,0.00577923]
[1739373608561,9.97804,2596.7,2596.6,0.00577923]
[1739373608755,12.25604,2596.7,2596.6,0.00577923]
[1739373609057,3.97804,2596.7,2596.6,0.00577923]
[1739373609261,0.77018,2596.9,2596.7,0.77022]
[1739373609457,3.2078,2597.3,2596.6,0.00577923]
[1739373609660,3.2078,2597.3,2597.2,0.7701]
[1739373609859,5.04500851,2598.9,2597.2,5.13301]
[1739373610056,0.76957,2599.0,2598.7,0.76963]
[1739373610357,3.2078,2599.1,2598.3,3.2078]
[1739373610556,0.76963,2598.8,2598.4,0.76973]
[1739373610761,3.2078,2599.0,2598.4,5.80062439]
[1739373610963,3.2078,2598.6,2598.4,5.03089439]
[1739373611477,0.76971,2598.5,2598.4,5.03089439]
[1739373611656,3.2078,2598.6,2598.2,0.00577923]
[1739373612265,0.76974,2598.4,2598.2,0.00577923]
[1739373612460,3.9775,2598.6,2598.2,0.00577923]
[1739373612665,3.2078,2598.6,2598.2,0.00577923]
[1739373612865,3.97757,2598.3,2598.2,0.00577923]
[1739373613060,3.97757,2598.3,2598.2,9.23e-06]
[1739373613259,9.97757,2598.3,2598.2,9.23e-06]
[1739373613873,9.97757,2598.3,2597.0,3.2078]
[1739373613874,1.92464,2598.1,2597.0,3.2078]
[1739373614056,3.2078,2597.8,2597.0,3.2078]
[1739373614263,0.76997,2597.7,2597.2,0.77009]
[1739373614456,3.97774,2597.8,2597.4,0.77002]
[1739373614657,3.97774,2597.8,2597.6,0.76997]
[1739373614658,3.2078,2597.8,2597.6,0.76997]
[1739373614863,0.76984,2598.1,2597.7,0.76995]
[1739373615058,0.8742,2598.4,2597.6,3.2078]
[1739373615264,0.7697,2598.6,2598.2,0.7698]
[1739373615862,0.00577923,2598.8,2598.4,3.2078]
[1739373616066,0.00577923,2598.8,2598.7,3.97745]
[1739373616265,3.2078,2599.4,2598.7,3.2078]
[1739373616461,3.2078,2600.1,2599.0,8.25280851]
[1739373616665,3.2078,2600.1,2599.4,0.76942]
[1739373616864,3.2078,2600.1,2599.1,7.34690445]
[1739373617172,3.2078,2600.1,2599.0,8.25280851]
[1739373617363,3.2078,2600.1,2599.0,3.2078]
[1739373617564,0.77512923,2599.8,2599.3,0.77522923]
[1739373617859,0.00577923,2599.8,2599.7,3.2078]
[1739373618066,0.00577923,2599.8,2599.7,3.97716]
[1739373618262,0.00577923,2599.8,2599.7,8.2994248]
[1739373618669,0.00577923,2599.8,2599.7,5.0916248]
[1739373618870,0.76937,2599.7,2599.3,2.27277923]
[1739373619173,0.7694,2599.6,2599.3,0.00577923]
[1739373619375,3.21357923,2599.8,2599.3,0.00577923]
[1739373619765,3.97724,2599.4,2599.3,0.00577923]
[1739373619972,3.2078,2599.4,2598.3,3.2078]